bitfinex/quotes_SOLUSD_20220208
["timestamp","ask_amount","ask_price","bid_price","bid_amount"]
[1644307880749,13.1583,116.29,116.18,1.79147977]
[1644307881124,13.1583,116.29,116.18,8.04147977]
[1644307882727,12.9083,116.29,116.19,1.76747977]
[1644307882925,12.9083,116.29,116.2,0.024]
[1644307883330,12.9083,116.29,116.2,1.79147977]
[1644307883528,12.9051,116.31,116.21,0.024]
[1644307883928,53.3579,116.34,116.21,1.79147977]
[1644307884131,43.0179,116.34,116.22,0.024]
[1644307884330,24.6134,116.36,116.22,0.024]
[1644307884730,12.903,116.33,116.22,0.024]
[1644307885129,13.153,116.33,116.22,0.024]
[1644307886533,17.453,116.33,116.22,0.024]
[1644307887135,34.819,116.33,116.22,0.024]
[1644307887336,41.28503362,116.33,116.22,0.024]
[1644307887537,12.44775549,116.32,116.2,0.024]
[1644307887736,12.9133,116.29,116.17,0.024]
[1644307888034,37.2103,116.29,116.17,0.024]
[1644307888255,2.10775549,116.28,116.17,0.024]
[1644307888457,10.34,116.27,116.17,0.024]
[1644307888856,12.9141,116.25,116.17,0.024]
[1644307889058,24.9321,116.25,116.16,498.76617608]
[1644307889258,25.1821,116.25,116.16,498.76617608]
[1644307890358,12.9193,116.22,116.16,498.76617608]
[1644307890555,23.20112876,116.22,116.16,498.74217608]
[1644307890761,29.45112876,116.22,116.16,498.74217608]
[1644307892255,19.1693,116.22,116.16,498.74217608]
[1644307893257,28.6923,116.22,116.16,498.74217608]
[1644307893659,12.9193,116.22,116.16,498.74217608]
[1644307895257,13.1693,116.22,116.16,498.74217608]
[1644307895659,12.9193,116.22,116.16,498.74217608]
[1644307895858,18.9193,116.22,116.16,498.74217608]
[1644307896459,29.2593,116.22,116.16,498.74217608]
[1644307897260,23.2593,116.22,116.16,498.74217608]
[1644307897460,12.9193,116.22,116.16,498.74217608]
[1644307898762,12.9137,116.24,116.16,498.74217608]
[1644307898963,12.9137,116.24,116.16,498.76617608]
[1644307899162,12.9137,116.24,116.16,498.74217608]
[1644307900364,18.36897952,116.29,116.16,498.74217608]
[1644307900562,12.9116,116.26,116.16,498.76617608]
[1644307900861,43.0385,116.29,116.17,0.024]
[1644307901061,43.0385,116.29,116.17,11.629]
[1644307901266,43.0385,116.29,116.18,0.024]
[1644307901464,2.10775549,116.28,116.18,0.024]
[1644307901662,18.9091,116.28,116.18,0.024]
[1644307901863,12.9091,116.28,116.17,0.024]
[1644307902063,18.9091,116.28,116.17,0.024]
[1644307902465,44.57407952,116.28,116.17,0.024]
[1644307902665,2.10775549,116.27,116.17,0.024]
[1644307902868,12.9134,116.25,116.17,0.024]
[1644307903068,12.9134,116.25,116.16,498.76617608]
[1644307903670,13.1634,116.25,116.16,498.76617608]
[1644307904968,2.10775549,116.24,116.16,498.76617608]
[1644307905168,12.9162,116.22,116.16,498.74217608]
[1644307905667,13.1662,116.22,116.16,498.74217608]
[1644307906269,25.00995549,116.22,116.16,498.74217608]
[1644307906869,33.2422,116.22,116.16,498.74217608]
[1644307907371,23.5062,116.22,116.16,498.74217608]
[1644307908171,2.10775549,116.21,116.16,498.74217608]
[1644307908371,12.9207,116.2,116.16,498.74217608]
[1644307908771,13.1707,116.2,116.16,498.74217608]
[1644307909571,19.1707,116.2,116.16,498.74217608]
[1644307909773,2.10775549,116.19,116.16,498.74217608]
[1644307909971,12.9248,116.18,116.16,498.74217608]
[1644307910172,32.3408,116.18,116.16,498.24217608]
[1644307910374,2.10775549,116.17,116.16,264.17597608]
[1644307910572,12.44775549,116.17,116.16,264.17597608]
[1644307910771,16.59,116.17,116.16,264.17597608]
[1644307910973,15.82992,116.17,116.16,264.17597608]
[1644307911372,17.93767549,116.17,116.16,169.59927608]
[1644307911574,23.93767549,116.17,116.16,169.59927608]
[1644307911772,28.24167549,116.17,116.16,159.06767608]
[1644307912171,19.88392,116.17,116.16,159.06767608]
[1644307912570,13.644,116.17,116.16,159.06767608]
[1644307912974,11.44775549,116.17,116.16,159.06767608]
[1644307913675,33.93019612,116.17,116.16,159.06767608]
[1644307913873,34.18019612,116.17,116.16,159.06767608]
[1644307914075,38.48419612,116.17,116.16,159.06767608]
[1644307914271,38.48419612,116.17,116.16,157.06767608]
[1644307915072,38.48419612,116.17,116.16,139.8732319]
[1644307915273,34.18019612,116.17,116.16,74.40547641]
[1644307915573,42.12549817,116.17,116.16,74.40547641]
[1644307915772,42.12549817,116.17,116.11,0.66839932]
[1644307915773,3.10008482,116.16,116.11,0.66839932]
[1644307915973,3.10008482,116.16,116.11,0.64439932]
[1644307915974,10.34,116.15,116.11,0.64439932]
[1644307916174,166.09549817,116.15,116.11,0.64439932]
[1644307916374,2.10775549,116.14,116.11,0.64439932]
[1644307916577,10.34,116.13,116.06,0.31441971]
[1644307916774,10.59,116.13,116.02,0.37211105]
[1644307916973,12.69775549,116.13,116.02,0.37211105]
[1644307917177,35.18019612,116.13,116.02,0.37211105]
[1644307917773,7.7591,116.1,116.02,0.37211105]
[1644307917974,10.34,116.09,116.02,0.37211105]
[1644307918374,10.59,116.09,116.02,0.37211105]
[1644307918974,24.59019612,116.13,116.02,0.37211105]
[1644307919178,10.34,116.12,116.02,10.37211105]
[1644307919576,25.8578,116.15,116.02,10.62211105]
[1644307919780,4.307,116.2,116.03,1.77339952]
[1644307919981,2.37510387,116.23,116.04,48.9267]
[1644307920179,13.33270028,116.23,116.04,65.2667]
[1644307920378,10.34,116.22,116.05,1.77339952]
[1644307920582,10.34,116.22,116.06,34.2748]
[1644307920777,10.34,116.22,116.06,34.5248]
[1644307920976,10.34,116.22,116.07,1.77339952]
[1644307921177,10.34,116.22,116.07,6.0]
[1644307921381,10.34,116.22,116.08,45.9656]
[1644307921382,7.751,116.21,116.08,45.9656]
[1644307921578,10.34,116.2,116.08,51.9656]
[1644307921783,10.34,116.2,116.08,53.74410593]
[1644307922180,23.67270028,116.22,116.08,53.74410593]
[1644307922380,31.42300028,116.22,116.08,54.01455518]
[1644307922679,13.33270028,116.2,116.08,52.23604925]
[1644307922879,13.58270028,116.2,116.08,52.23604925]
[1644307923086,2.10775549,116.19,116.08,46.23604925]
[1644307923382,12.69775549,116.19,116.08,46.23604925]
[1644307923581,7.754,116.16,116.08,46.23604925]
[1644307923780,2.10775549,116.18,116.08,46.48604925]
[1644307923979,2.10775549,116.18,116.08,52.48604925]
[1644307924182,2.10775549,116.21,116.08,52.48604925]
[1644307924382,6.23992,116.22,116.08,52.48604925]
[1644307924782,6.23992,116.22,116.09,10.34]
[1644307924982,6.23992,116.22,116.09,14.644]
[1644307925181,6.23992,116.22,116.09,20.894]
[1644307925381,10.34,116.24,116.09,21.16444925]
[1644307925581,10.34,116.24,116.09,16.86044925]
[1644307925783,23.67270028,116.24,116.09,16.86044925]
[1644307926185,7.75,116.22,116.09,16.61044925]
[1644307926584,10.34,116.21,116.09,0.27044925]
[1644307926988,13.33270028,116.2,116.09,0.27044925]
[1644307927185,10.34,116.19,116.09,0.27044925]
[1644307927485,23.67270028,116.19,116.09,0.27044925]
[1644307927687,23.92270028,116.19,116.09,0.27044925]
[1644307927886,7.7527,116.18,116.09,0.27044925]
[1644307928086,18.0927,116.18,116.09,0.27044925]
[1644307928987,31.42540028,116.18,116.09,0.27044925]
[1644307929390,168.96374479,116.18,116.09,0.27044925]
[1644307930086,173.26874479,116.18,116.09,0.27044925]
[1644307930289,173.51874479,116.18,116.09,0.27044925]
[1644307930488,169.21374479,116.18,116.09,0.27044925]
[1644307931290,188.88727416,116.18,116.09,0.27044925]
[1644307931489,7.7589,116.15,116.09,0.27044925]
[1644307931686,10.34,116.14,116.09,0.27044925]
[1644307931887,31.99104479,116.14,116.09,0.27044925]
[1644307932087,32.24104479,116.14,116.09,0.27044925]
[1644307933790,7.7589,116.13,116.09,0.27044925]
[1644307933989,10.34,116.12,116.09,0.27044925]
[1644307934892,7.7581,116.11,116.09,0.27044925]
[1644307935191,10.34,116.1,116.03,0.024]
[1644307935389,10.34,116.1,116.03,0.5408985]
[1644307935589,139.81,116.1,116.03,0.5408985]
[1644307935791,7.7615,116.08,116.03,0.5408985]
[1644307935991,10.34,116.07,116.03,0.5408985]
[1644307936190,10.59,116.07,116.03,0.5408985]
[1644307937794,7.7635,116.06,116.03,0.5408985]
[1644307938091,10.34,116.05,116.03,0.5408985]
[1644307938297,10.59,116.05,116.03,0.5408985]
[1644307938591,10.34,116.05,116.03,0.5408985]
[1644307938993,10.34,116.05,116.03,0.0408985]
[1644307939395,7.7629,116.04,116.03,0.0408985]
[1644307939591,18.1029,116.04,116.03,0.0408985]
[1644307939792,18.3529,116.04,116.03,0.0408985]
[1644307940191,18.1029,116.04,116.03,0.0408985]
[1644307940395,10.34,116.04,116.03,0.0408985]
[1644307940592,7.7607,116.06,116.03,0.0408985]
[1644307940803,7.7607,116.06,116.04,6.06439994]
[1644307941192,7.7607,116.06,116.03,0.0408985]
[1644307941393,7.7592,116.08,116.03,0.0408985]
[1644307941793,25.8646,116.11,116.03,0.0408985]
[1644307942394,36.2046,116.11,116.03,0.0408985]
[1644307942697,7.7578,116.1,116.03,0.0408985]
[1644307943695,10.34,116.09,116.03,0.0408985]
[1644307943900,7.7604,116.08,116.03,0.0408985]
[1644307944096,10.34,116.07,116.03,0.0408985]
[1644307944296,10.59,116.07,116.03,0.0408985]
[1644307944519,10.59,116.07,116.02,0.78858086]
[1644307945696,7.7609,116.06,116.02,0.78858086]
[1644307945897,18.1009,116.06,116.02,0.78858086]
[1644307946096,18.3509,116.06,116.02,0.78858086]
[1644307946697,20.45865549,116.06,116.02,0.78858086]
[1644307947099,18.3509,116.06,116.02,0.78858086]
[1644307947398,29.4819,116.06,116.02,0.78858086]
[1644307947802,29.2319,116.06,116.02,0.78858086]
[1644307948600,18.1009,116.06,116.02,0.78858086]
[1644307949000,2.10775549,116.05,116.02,8.086e-05]
[1644307949202,18.1055,116.04,116.02,8.086e-05]
[1644307949602,2.10775549,116.03,116.02,8.086e-05]
[1644307949801,12.69775549,116.03,116.02,8.086e-05]
[1644307950413,38.58305549,116.03,116.02,8.086e-05]
[1644307951205,51.16305549,116.03,116.02,8.086e-05]
[1644307951504,83.79229632,116.03,116.02,8.086e-05]
[1644307951706,213.01229632,116.03,115.98,31.90530461]
[1644307951904,4.309,116.02,115.98,31.90530461]
[1644307952126,18.1078,116.01,115.98,31.90530461]
[1644307952327,20.46555549,116.01,115.98,31.90530461]
[1644307952528,2.10775549,116.0,115.98,31.40530461]
[1644307952826,10.34,115.99,115.98,31.40530461]
[1644307953227,10.59,115.99,115.98,31.40530461]
[1644307953428,18.3579,115.99,115.98,31.40530461]
[1644307953629,18.1079,115.99,115.98,31.40530461]
[1644307953829,10.34,115.99,115.98,31.40530461]
[1644307954029,10.34,116.01,115.98,37.46970455]
[1644307955234,12.44775549,116.01,115.98,37.46970455]
[1644307955633,10.34,116.01,115.98,37.46970455]
[1644307955931,2.10775549,116.0,115.98,37.46970455]
[1644307956130,10.34,115.99,115.98,31.40530461]
[1644307956432,10.59,115.99,115.98,31.40530461]
[1644307956631,12.69775549,115.99,115.98,31.40530461]
[1644307957834,20.46495549,115.99,115.98,37.46970455]
[1644307958031,18.3572,115.99,115.98,31.40530461]
[1644307958433,20.46495549,115.99,115.98,31.40530461]
[1644307959436,20.21495549,115.99,115.98,31.40530461]
[1644307959636,42.39565577,115.99,115.98,31.40530461]
[1644307959836,54.10775549,115.98,115.97,0.21590712]
[1644307960037,38.34835549,115.98,115.97,0.21590712]
[1644307960237,51.68105577,115.98,115.97,0.21590712]
[1644307960442,49.57330028,115.98,115.97,0.21590712]
[1644307961440,59.50330028,115.98,115.97,0.21590712]
[1644307961638,67.31608924,115.98,115.97,0.21590712]
[1644307961839,67.56608924,115.98,115.97,0.43181424]
[1644307962339,7.7713,115.95,115.88,0.024]
[1644307962541,20.0573,115.95,115.88,0.024]
[1644307962741,20.26054445,115.94,115.86,0.67768714]
[1644307963139,37.14120188,115.93,115.86,0.67768714]
[1644307963343,10.34,115.92,115.86,0.67768714]
[1644307963539,41.88815577,115.92,115.86,0.65368714]
[1644307963741,42.13815577,115.92,115.86,0.65368714]
[1644307964840,20.22045549,115.92,115.86,0.65368714]
[1644307965041,18.1127,115.92,115.86,0.65368714]
[1644307967044,18.3627,115.92,115.86,0.65368714]
[1644307967246,18.1127,115.92,115.86,0.65368714]
[1644307968448,2.10775549,115.91,115.86,0.65368714]
[1644307968646,10.34,115.9,115.86,0.65368714]
[1644307968844,10.59,115.9,115.86,0.65368714]
[1644307969745,2.10775549,115.89,115.86,0.65368714]
[1644307970344,2.35775549,115.89,115.86,0.65368714]
[1644307970852,18.92625549,115.88,115.86,0.65368714]
[1644307971147,2.10775549,115.87,115.86,0.65368714]
[1644307971348,12.69775549,115.87,115.86,0.65368714]
[1644307971545,2.35775549,115.87,115.86,0.65368714]
[1644307972948,0.25,115.87,115.86,0.65368714]
[1644307973345,2.35775549,115.87,115.86,0.65368714]
[1644307973547,0.25,115.87,115.86,0.65368714]
[1644307974547,2.35775549,115.87,115.86,0.65368714]
[1644307974747,34.29765549,115.87,115.86,0.65368714]
[1644307975550,34.29765549,115.87,115.83,0.024]
[1644307975751,38.61265549,115.87,115.81,7.0]
[1644307975952,38.11265549,115.87,115.81,7.0]
[1644307976552,6.4817,115.85,115.81,7.0]
[1644307976754,10.34,115.84,115.81,7.0]
[1644307977353,10.59,115.84,115.81,7.0]
[1644307978056,2.10775549,115.83,115.81,7.0]
[1644307978274,10.34,115.82,115.81,7.0]
[1644307978657,10.59,115.82,115.81,7.0]
[1644307979861,19.18025549,115.82,115.81,7.0]
[1644307980063,17.0725,115.82,115.81,7.0]
[1644307980265,10.34,115.82,115.81,7.0]
[1644307980464,10.34,115.84,115.81,7.0]
[1644307980668,10.34,115.85,115.81,7.0]
[1644307980865,16.8201,115.85,115.81,7.0]
[1644307981665,10.34,115.87,115.81,7.0]
[1644307981868,6.4775,115.89,115.81,7.0]
[1644307982567,2.10775549,115.88,115.81,7.0]
[1644307983166,6.4775,115.89,115.81,7.0]
[1644307983367,10.34,115.9,115.81,7.0]
[1644307983568,28.23615698,115.93,115.81,7.024]
[1644307983767,10.34,115.92,115.82,0.024]
[1644307984167,14.6239567,115.91,115.82,0.024]
[1644307984367,6.4772,115.89,115.82,0.024]
[1644307984569,6.4772,115.89,115.81,7.0]
[1644307984970,6.7272,115.89,115.81,7.0]
[1644307985172,5.7791,115.89,115.81,7.0]
[1644307985375,10.34,115.92,115.82,130.0]
[1644307985779,10.34,115.92,115.82,130.274]
[1644307986180,10.34,115.92,115.82,130.024]
[1644307986583,12.44775549,115.92,115.82,130.024]
[1644307986780,10.34,115.92,115.82,130.024]
[1644307986980,15.5203,115.92,115.82,130.024]
[1644307987280,10.34,115.92,115.82,130.024]
[1644307987682,2.10775549,115.94,115.82,130.024]
[1644307987881,10.34,115.95,115.83,0.024]
[1644307988082,5.1793,115.94,115.83,0.024]
[1644307989484,11.41922,115.94,115.83,0.024]
[1644307990083,2.10775549,115.93,115.83,0.024]
[1644307990483,6.23992,115.94,115.83,0.024]
[1644307991086,8.34767549,115.94,115.83,0.024]
[1644307991289,18.68767549,115.94,115.83,0.024]
[1644307991487,23.86677549,115.94,115.83,0.024]
[1644307991689,17.92620028,115.93,115.83,0.024]
[1644307991985,26.05995577,115.92,115.83,0.024]
[1644307992188,5.49848257,115.91,115.83,0.024]
[1644307992386,10.34,115.9,115.81,7.024]
[1644307992587,23.95220028,115.9,115.81,7.024]
[1644307992788,26.30995577,115.9,115.81,7.024]
[1644307992991,5.8816129,115.85,115.81,7.024]
[1644307993188,129.22,115.83,115.8,0.34563488]
[1644307993387,129.22,115.83,115.72,44.22810747]
[1644307993388,14.657,115.82,115.72,44.22810747]
[1644307993587,12.44775549,115.82,115.72,43.72810747]
[1644307993787,12.69775549,115.82,115.72,43.72810747]
[1644307993986,2.10775549,115.81,115.72,43.72810747]
[1644307994187,5.1869,115.79,115.72,43.72810747]
[1644307994588,5.4369,115.79,115.72,43.72810747]
[1644307994887,3.6869,115.79,115.72,43.72810747]
[1644307995087,3.9369,115.79,115.72,43.72810747]
[1644307995290,5.1868,115.77,115.72,43.72810747]
[1644307995490,10.34,115.76,115.72,43.72810747]
[1644307995888,5.1868,115.77,115.72,43.72810747]
[1644307996088,0.25,115.79,115.72,43.72810747]
[1644307996089,10.34,115.76,115.72,43.72810747]
[1644307996388,10.34,115.78,115.72,43.72810747]
[1644307996788,10.59,115.78,115.72,43.72810747]
[1644307996991,12.69775549,115.78,115.72,43.72810747]
[1644307997589,17.88415549,115.78,115.72,43.72810747]
[1644307997792,4.319,115.77,115.72,43.72810747]
[1644307997990,139.56,115.76,115.72,43.72810747]
[1644307998190,156.67366688,115.76,115.72,43.72810747]
[1644307998590,2.10775549,115.75,115.72,43.72810747]
[1644307998790,10.34,115.74,115.72,43.72810747]
[1644307999191,0.0099,115.74,115.72,43.72810747]
[1644307999392,4.32,115.78,115.73,3.03219997]
[1644307999393,10.34,115.76,115.73,3.03219997]
[1644307999594,10.34,115.75,115.73,3.03219997]
[1644307999992,10.34,115.75,115.72,43.72810747]
[1644308000195,106.0,115.71,115.6,0.29721024]
[1644308000391,8.96893831,115.64,115.6,0.29721024]
[1644308000592,10.34,115.63,115.61,0.024]
[1644308000991,10.34,115.63,115.6,0.29721024]
[1644308001191,10.59,115.63,115.6,0.29721024]
[1644308001393,30.01435549,115.63,115.6,0.29721024]
[1644308001593,30.01435549,115.63,115.57,0.024]
[1644308001594,184.99875362,115.63,115.57,0.024]
[1644308001791,184.99875362,115.63,115.56,0.59442848]
[1644308001792,0.29721024,115.57,115.56,0.29859552]
[1644308001996,0.29721024,115.57,115.32,142.40360028]
[1644308001997,143.885,115.57,115.32,142.40360028]
[1644308002196,129.22,115.51,115.35,78.4105]
[1644308002392,139.56,115.5,115.36,6.37412]
[1644308002591,5.2004,115.49,115.36,6.37412]
[1644308002791,139.56,115.48,115.32,129.55470028]
[1644308002993,10.34,115.48,115.33,2.41238]
[1644308003199,129.22,115.47,115.34,4.332]
[1644308003394,5.2004,115.49,115.34,4.332]
[1644308003594,15.5404,115.49,115.34,4.332]
[1644308003795,17.89815549,115.49,115.34,4.332]
[1644308003993,17.89815549,115.49,115.34,0.134171]
[1644308004192,15.7904,115.49,115.34,0.134171]
[1644308004394,17.89815549,115.49,115.34,0.134171]
[1644308004592,66.0,115.48,115.32,0.44582596]
[1644308004797,5.526838,115.44,115.32,0.44582596]
[1644308004993,10.34,115.43,115.32,0.44582596]
[1644308005194,4.333,115.42,115.32,0.44582596]
[1644308005396,139.56,115.41,115.32,0.44582596]
[1644308005694,4.333,115.4,115.32,0.44582596]
[1644308005895,139.56,115.39,115.32,0.44582596]
[1644308006094,14.173,115.38,115.32,0.44582596]
[1644308006296,22.187,115.38,115.32,0.44582596]
[1644308006495,5.2067,115.37,115.32,0.44582596]
[1644308006696,10.34,115.36,115.32,0.44582596]
[1644308007095,10.59,115.36,115.32,0.44582596]
[1644308007299,5.4567,115.37,115.32,0.44582596]
[1644308007498,10.34,115.36,115.32,0.44582596]
[1644308007698,10.59,115.36,115.32,0.44582596]
[1644308008102,46.0,115.35,115.32,0.75756016]
[1644308008300,14.675,115.34,115.32,0.75756016]
[1644308008501,17.65595549,115.34,115.32,0.75756016]
[1644308008698,17.90595549,115.34,115.32,0.75756016]
[1644308009201,15.5482,115.34,115.32,0.75756016]
[1644308009399,15.5482,115.34,115.32,0.44175232]
[1644308009599,15.5482,115.34,115.32,5.232e-05]
[1644308010700,15.7982,115.34,115.32,5.232e-05]
[1644308011000,15.5482,115.34,115.32,5.232e-05]
[1644308011203,10.34,115.34,115.32,5.232e-05]
[1644308011999,10.34,115.37,115.32,5.232e-05]
[1644308012202,2.6757114,115.34,115.32,5.232e-05]
[1644308012404,0.0057114,115.34,115.32,5.232e-05]
[1644308013002,10.3457114,115.34,115.32,5.232e-05]
[1644308013203,12.45346689,115.34,115.32,5.232e-05]
[1644308013503,18.33507979,115.34,115.32,5.232e-05]
[1644308013703,4.335,115.33,115.32,5.232e-05]
[1644308013902,14.675,115.33,115.32,5.232e-05]
[1644308014106,16.78275549,115.33,115.32,5.232e-05]
[1644308014304,10.34,115.33,115.32,5.232e-05]
[1644308015104,10.34,115.33,115.3,0.92163625]
[1644308015505,10.34,115.33,115.18,24.2539]
[1644308015506,0.92163625,115.29,115.18,24.2539]
[1644308015705,6.44275549,115.32,115.18,24.2539]
[1644308015706,10.34,115.28,115.18,30.13798]
[1644308016205,20.916,115.28,115.18,30.13798]
[1644308016405,23.02375549,115.28,115.18,30.13798]
[1644308016604,20.916,115.28,115.18,30.13798]
[1644308016806,28.23495549,115.28,115.18,30.13798]
[1644308017006,0.31144253,115.27,115.18,6.38408]
[1644308017206,0.3233135,115.23,115.18,6.38408]
[1644308017411,2.10775549,115.15,115.0,382.37506541]
[1644308017707,2.10775549,115.15,115.0,369.67786541]
[1644308017708,129.22,115.03,115.0,369.67786541]
[1644308017909,10.34,115.02,115.0,326.19786541]
[1644308018105,34.27315763,115.02,115.0,255.35786541]
[1644308018306,34.27315763,115.02,115.0,232.62786542]
[1644308018307,11.77438495,115.01,115.0,232.62786542]
[1644308018508,9.66662946,115.01,115.0,232.62786542]
[1644308018705,4.597,115.01,115.0,222.50786542]
[1644308018908,10.59,115.01,115.0,222.50786542]
[1644308019108,0.25,115.01,115.0,222.50786542]
[1644308019306,14.597,115.01,115.0,222.50786542]
[1644308019507,56.61756642,115.01,114.9,0.30958334]
[1644308019808,129.53930723,114.96,114.92,0.53617505]
[1644308020010,129.53930723,114.96,114.82,0.1969635]
[1644308020011,14.48531766,114.9,114.76,2.06529345]
[1644308020206,24.694,114.89,114.77,3.40689]
[1644308020407,5.0,114.88,114.77,3.40689]
[1644308020609,14.694,114.87,114.76,2.06529345]
[1644308020809,22.887,114.87,114.76,2.06529345]
[1644308021007,53.60662931,114.87,114.77,6.40689]
[1644308021207,12.23377706,114.86,114.77,6.40689]
[1644308021406,0.004,114.85,114.77,6.40689]
[1644308021807,0.004,114.85,114.76,0.74802513]
[1644308021808,6.46675549,114.85,114.76,0.74802513]
[1644308022008,7.943,114.87,114.77,70.0]
[1644308022208,14.48531766,114.9,114.78,66.0]
[1644308022408,14.48531766,114.9,114.77,0.34299345]
[1644308022611,0.00809524,114.86,114.77,0.34299345]
[1644308022808,0.00809524,114.86,114.77,4.69599345]
[1644308023009,0.00809524,114.86,114.77,0.34299345]
[1644308023207,5.0,115.0,114.78,141.354]
[1644308023408,4.351,114.99,114.78,141.354]
[1644308023610,9.14101046,115.07,114.83,0.30346555]
[1644308023817,10.0,115.05,114.84,4.349]
[1644308024011,10.0,115.05,114.87,0.31619896]
[1644308024208,10.0,115.05,114.88,4.349]
[1644308024412,10.0,115.05,114.85,4.349]
[1644308024610,10.0,115.05,114.87,1.85636378]
[1644308024812,10.0,115.05,114.88,4.349]
[1644308025215,4.349,115.08,114.88,10.349]
[1644308025412,10.0,115.07,114.88,10.349]
[1644308025612,4.348,115.06,114.88,10.349]
[1644308025811,10.34,115.09,114.89,10.34]
[1644308026011,9.348,115.15,114.9,4.348]
[1644308026210,9.348,115.15,114.9,10.598]
[1644308026211,2.10775549,115.1,114.9,10.598]
[1644308026413,4.347,115.09,114.91,10.34]
[1644308026711,2.10775549,115.14,114.91,16.59]
[1644308026712,10.34,115.12,114.91,16.59]
[1644308026912,11.23992,115.15,114.91,16.59]
[1644308026913,2.10775549,115.09,114.91,16.59]
[1644308027314,12.44775549,115.11,114.91,6.0]
[1644308027512,4.347,115.1,114.92,4.347]
[1644308027715,10.34,115.09,114.92,10.597]
[1644308027915,12.44775549,115.09,114.92,0.25]
[1644308028114,12.44775549,115.09,114.91,4.347]
[1644308028115,12.69775549,115.09,114.91,4.347]
[1644308028317,10.34,115.09,114.91,14.937]
[1644308028613,2.10775549,115.11,114.91,20.937]
[1644308028814,12.44775549,115.13,114.91,14.937]
[1644308029013,2.10775549,115.13,114.93,0.31662745]
[1644308029314,2.10775549,115.13,114.94,14.686]
[1644308029513,6.23992,115.15,114.97,0.31155251]
[1644308029514,10.58592,115.15,114.97,0.31155251]
[1644308029714,6.23992,115.15,114.98,14.685]
[1644308029913,6.23992,115.15,114.98,4.345]
[1644308030117,2.10775549,115.2,114.98,10.595]
[1644308030319,10.58392,115.19,114.98,4.595]
[1644308030512,6.23992,115.19,114.98,10.595]
[1644308030713,2.10775549,115.18,114.99,10.34]
[1644308030914,2.10775549,115.18,115.0,4.344]
[1644308031114,4.344,115.17,115.01,10.34]
[1644308031615,2.10775549,115.16,115.01,10.34]
[1644308031812,4.344,115.15,115.01,10.34]
[1644308032214,2.10775549,115.14,115.01,10.34]
[1644308032514,2.10775549,115.17,115.01,10.34]
[1644308032713,2.10775549,115.17,114.99,4.344]
[1644308032919,2.10775549,115.15,114.99,4.344]
[1644308033319,4.345,115.14,114.99,4.344]
[1644308033715,2.10775549,115.13,114.96,4.345]
[1644308033915,4.346,115.12,114.95,16.34]
[1644308034116,4.346,115.12,114.95,10.34]
[1644308034315,6.45375549,115.12,114.95,10.34]
[1644308034537,10.34,115.11,114.92,14.686]
[1644308034915,2.10775549,115.1,114.92,14.686]
[1644308035116,2.10775549,115.13,114.92,14.686]
[1644308035316,4.346,115.12,114.92,14.99845515]
[1644308035519,4.346,115.14,114.97,0.3170308]
[1644308035716,4.345,115.18,114.98,14.685]
[1644308036118,4.345,115.18,114.98,14.935]
[1644308036518,2.10775549,115.17,114.98,14.685]
[1644308036820,4.344,115.16,114.98,10.34]
[1644308037017,4.344,115.16,114.93,4.345]
[1644308037317,53.23775549,115.15,114.93,4.345]
[1644308037517,14.686,115.14,114.86,4.346]
[1644308037718,14.686,115.14,114.83,4.66813351]
[1644308037719,102.68458725,115.14,114.83,4.66813351]
[1644308037918,129.22,115.08,114.83,4.347]
[1644308038121,65.819,115.07,114.83,4.347]
[1644308038317,5.0,115.03,114.81,10.34]
[1644308038518,14.69,115.02,114.81,10.34]
[1644308038718,14.69,115.02,114.82,4.79486055]
[1644308038922,24.59566206,115.02,114.82,4.79486055]
[1644308039122,7.10775549,115.01,114.82,4.79486055]
[1644308039318,55.481,115.0,114.82,0.44486055]
[1644308039520,10.34,114.99,114.82,0.44486055]